bitfinex/quotes_BTCUSD_20251113
["timestamp","ask_amount","ask_price","bid_price","bid_amount"]
[1763061268858,0.09916915,98870.0,98842.0,0.03106317]
[1763061269265,0.09853,98869.0,98842.0,0.03106317]
[1763061269442,0.09853,98869.0,98843.0,0.03078856]
[1763061269678,0.001,98870.0,98854.0,0.20231801]
[1763061269874,0.001,98870.0,98853.0,0.23939012]
[1763061270030,0.10016915,98870.0,98853.0,0.03707]
[1763061270234,0.09916915,98870.0,98853.0,0.03707]
[1763061270581,0.09916915,98870.0,98855.0,0.20231574]
[1763061270769,0.09816915,98870.0,98856.0,0.20231415]
[1763061271138,0.001,98869.0,98854.0,0.03106317]
[1763061271334,0.001,98869.0,98857.0,0.20231108]
[1763061271558,0.001,98869.0,98854.0,0.03106317]
[1763061271761,0.001,98869.0,98862.0,0.20230162]
[1763061271957,0.09816915,98885.0,98855.0,0.13020856]
[1763061272213,0.002,98870.0,98858.0,0.20230986]
[1763061272547,0.09816915,98885.0,98863.0,0.20229941]
[1763061272749,0.001,98869.0,98855.0,0.13020856]
[1763061272872,0.001,98869.0,98855.0,0.09942]
[1763061273234,0.04786,98876.0,98855.0,0.09942]
[1763061273446,0.09916915,98870.0,98832.0,0.09816915]
[1763061273600,0.09916915,98870.0,98833.0,0.27845728]
[1763061273802,0.09916915,98870.0,98840.0,0.60937783]
[1763061274362,0.09916915,98870.0,98841.0,0.42242]
[1763061274529,0.09816915,98870.0,98850.0,0.59926047]
[1763061274718,0.09916915,98870.0,98850.0,0.59926047]
[1763061274963,0.001,98869.0,98849.0,0.20232848]
[1763061275214,0.04786,98876.0,98852.0,0.20232065]
[1763061275419,0.04786,98876.0,98851.0,0.20232413]
[1763061275637,0.002,98870.0,98853.0,0.20232033]
[1763061275863,0.002,98870.0,98853.0,0.20232024]
[1763061275864,0.001,98870.0,98853.0,0.20232024]
[1763061276082,0.001,98869.0,98852.0,0.09942]
[1763061276284,0.001,98870.0,98853.0,0.05040715]
[1763061276525,0.09816915,98869.0,98841.0,0.00015]
[1763061276737,0.2,98850.0,98841.0,0.00015]
[1763061276944,0.09816915,98854.0,98824.0,0.09942]
[1763061277185,0.09816915,98869.0,98853.0,0.03707]
[1763061278017,0.09816915,98869.0,98853.0,0.03520942]
[1763061278221,0.09816915,98869.0,98854.0,0.02375409]
[1763061278433,0.10216915,98869.0,98853.0,0.03525942]
[1763061278647,0.09816915,98869.0,98853.0,0.03525942]
[1763061278853,0.10116915,98869.0,98853.0,0.03525942]
[1763061279075,0.10316915,98869.0,98853.0,0.03525942]
[1763061279262,0.10116915,98869.0,98853.0,0.00023942]
[1763061279466,0.10216915,98869.0,98853.0,0.00023942]
[1763061279673,0.09999,98868.0,98853.0,0.00028942]
[1763061280554,0.09916915,98869.0,98853.0,0.00028942]
[1763061280837,0.4,98890.0,98853.0,0.00028942]
[1763061280838,0.04903,98891.0,98868.0,0.03707]
[1763061281059,0.002,98869.0,98868.0,0.03707]
[1763061281183,0.04903,98891.0,98868.0,0.03707]
[1763061281642,0.79926047,98890.0,98868.0,0.03307]
[1763061281832,0.79926047,98890.0,98854.0,0.09942]
[1763061281833,0.14708973,98885.0,98861.0,0.03307]
[1763061282034,0.14708973,98885.0,98853.0,0.00028942]
[1763061282248,0.001,98869.0,98853.0,0.00028942]
[1763061282449,0.79926047,98880.0,98853.0,0.00781731]
[1763061282625,0.09816915,98870.0,98853.0,0.00781731]
[1763061283519,0.04786,98869.0,98853.0,0.00781731]
[1763061284140,0.04786,98869.0,98846.0,0.25514147]
[1763061284388,0.0479993,98869.0,98844.0,0.00023401]
[1763061284619,0.0001393,98869.0,98868.0,0.03307]
[1763061285194,0.0011393,98869.0,98867.0,0.03307]
[1763061285407,0.0001393,98869.0,98867.0,0.03307]
[1763061285855,0.0011393,98869.0,98867.0,0.03307]
[1763061286981,0.0001393,98869.0,98867.0,0.03407]
[1763061287234,0.0011393,98869.0,98867.0,0.03407]
[1763061288120,0.0011393,98869.0,98868.0,0.02334122]
[1763061288576,0.0011393,98869.0,98867.0,0.03407]
[1763061289483,0.0011393,98869.0,98868.0,5e-05]
[1763061289929,0.0001393,98869.0,98868.0,5e-05]
[1763061290130,0.0001393,98869.0,98868.0,0.00105]
[1763061290362,0.0011393,98869.0,98868.0,0.0011]
[1763061290657,0.0011393,98869.0,98868.0,0.04497628]
[1763061290918,0.0011393,98869.0,98868.0,0.00115]
[1763061291371,0.0011393,98869.0,98867.0,0.03307]
[1763061291372,0.0011393,98869.0,98867.0,0.01622]
[1763061291808,0.0011393,98869.0,98860.0,0.08840047]
[1763061292327,0.0011393,98869.0,98860.0,0.29070538]
[1763061292584,0.0011393,98869.0,98861.0,0.07218047]
[1763061293124,0.0001393,98869.0,98867.0,0.001]
[1763061293337,0.0011393,98869.0,98867.0,0.001]
[1763061293591,0.0001393,98869.0,98861.0,0.07218047]
[1763061293819,0.0011393,98869.0,98861.0,0.07318047]
[1763061294077,0.0001393,98869.0,98861.0,0.001]
[1763061294311,0.0001393,98869.0,98862.0,0.02351005]
[1763061294538,0.0011393,98869.0,98862.0,0.09569052]
[1763061294781,0.0001393,98869.0,98867.0,0.001]
[1763061295538,0.01314,98877.0,98867.0,0.001]
[1763061295798,0.01360465,98877.0,98867.0,0.001]
[1763061296005,0.001,98869.0,98867.0,0.001]
[1763061296213,0.001,98869.0,98862.0,0.02351005]
[1763061296415,0.01360465,98877.0,98867.0,0.01864301]
[1763061296624,0.09816915,98868.0,98867.0,0.01864301]
[1763061297254,0.09816915,98868.0,98844.0,0.00023401]
[1763061297435,0.04786,98845.0,98844.0,0.00023401]
[1763061298503,0.04786,98845.0,98825.0,0.07704658]
[1763061298717,0.04786,98845.0,98844.0,0.0001393]
[1763061299157,0.09816915,98853.0,98844.0,0.0001393]
[1763061299586,0.09816915,98866.0,98844.0,0.01009523]
[1763061299796,0.0364,98858.0,98844.0,0.01009523]
[1763061300038,0.002,98845.0,98844.0,0.01009523]
[1763061300243,0.0364,98858.0,98844.0,0.0001393]
[1763061300672,0.001,98853.0,98844.0,0.0001393]
[1763061300876,0.0364,98858.0,98844.0,0.0001393]
[1763061301524,0.09816915,98851.0,98844.0,0.0001393]
[1763061301737,0.323,98849.0,98844.0,0.0001393]
[1763061301957,0.04341874,98846.0,98844.0,0.0001393]
[1763061302170,0.04341874,98846.0,98800.0,0.00015]
[1763061302171,0.87952244,98830.0,98800.0,0.00015]
[1763061302404,0.09816915,98819.0,98800.0,0.00028932]
[1763061302611,0.02537,98801.0,98800.0,0.00028932]
[1763061303461,0.09096,98801.0,98800.0,0.00028932]
[1763061303894,0.10972511,98801.0,98800.0,0.00028932]
[1763061304101,0.41396,98801.0,98800.0,0.00028932]
[1763061304724,0.09096,98801.0,98800.0,0.00028932]
[1763061305141,0.10970619,98801.0,98800.0,0.00028932]
[1763061305573,0.10970619,98801.0,98760.0,0.04791]
[1763061305827,0.10970619,98801.0,98761.0,0.014671]
[1763061305828,0.87952244,98780.0,98761.0,0.014671]
[1763061306019,0.09816915,98786.0,98760.0,0.0765368]
[1763061306236,0.01053,98779.0,98760.0,0.00046454]
[1763061306850,0.0186976,98778.0,98760.0,0.00046454]
[1763061307029,0.10604,98779.0,98760.0,0.00046454]
[1763061307257,0.11418993,98778.0,98760.0,0.00046454]
[1763061307461,0.09816915,98771.0,98760.0,0.00046454]
[1763061307704,0.01867993,98770.0,98760.0,0.00046454]
[1763061307911,0.09551,98770.0,98760.0,0.00046454]
[1763061308113,0.97503244,98770.0,98760.0,0.00046454]
[1763061308250,0.01867867,98769.0,98760.0,0.00046454]
[1763061308451,0.01867867,98768.0,98760.0,0.00046454]
[1763061308756,0.09551,98769.0,98768.0,0.00197763]
[1763061308959,0.11417465,98769.0,98768.0,0.00197763]
[1763061310155,0.2123438,98769.0,98768.0,0.00197763]
[1763061310973,0.1168338,98769.0,98768.0,0.00197763]
[1763061311404,0.09816915,98769.0,98768.0,0.00197763]
[1763061312600,0.11676666,98769.0,98743.0,0.0476745]
[1763061312965,0.16353751,98768.0,98744.0,0.05107519]
[1763061313169,0.16353751,98768.0,98744.0,0.00765645]
[1763061313170,0.87952244,98760.0,98744.0,0.00765645]
[1763061313400,0.09816915,98753.0,98740.0,0.0004]
[1763061313779,0.09551,98752.0,98740.0,0.0004]
[1763061315181,0.09551,98762.0,98740.0,0.0004]
[1763061315380,0.04943,98768.0,98740.0,0.0004]
[1763061315381,0.04943,98768.0,98742.0,0.04341874]
[1763061315689,0.00046425,98769.0,98767.0,0.0478]
[1763061315886,0.00046425,98769.0,98767.0,0.108]
[1763061316123,0.00046425,98769.0,98768.0,0.24591347]
[1763061316477,0.00046425,98769.0,98768.0,0.67882054]
[1763061316679,0.09551,98825.0,98781.0,0.04341874]
[1763061316887,0.04943,98826.0,98768.0,0.11090707]
[1763061316888,0.09816915,98803.0,98769.0,0.323]
[1763061317102,0.01861258,98802.0,98770.0,0.04341874]
[1763061317319,0.01861258,98801.0,98772.0,0.04341874]
[1763061317520,0.01861258,98800.0,98775.0,0.04341874]
[1763061317721,0.09551,98803.0,98773.0,0.09718]
[1763061317923,0.11678584,98802.0,98774.0,0.04341874]
[1763061318148,0.01861669,98801.0,98774.0,0.04341874]
[1763061318359,0.01861669,98801.0,98775.0,0.02478143]
[1763061318559,0.01861669,98801.0,98768.0,0.04341874]
[1763061318560,0.323,98799.0,98768.0,0.04341874]
[1763061318771,0.03644,98775.0,98759.0,0.00023431]
[1763061318973,0.87952244,98770.0,98759.0,0.00023431]
[1763061319196,0.01861669,98769.0,98759.0,0.00023431]
[1763061319400,0.323,98771.0,98759.0,0.00023431]
[1763061319401,0.01861669,98768.0,98759.0,0.00023431]
[1763061319599,0.01861669,98767.0,98759.0,0.00023431]
[1763061319804,0.09551,98771.0,98759.0,0.00023431]
[1763061320005,0.01861381,98770.0,98759.0,0.00069856]
[1763061320157,0.01861381,98769.0,98759.0,0.00069856]
[1763061320357,0.01861381,98768.0,98759.0,0.00069856]
[1763061320563,0.0186248,98767.0,98745.0,0.04341874]
[1763061320929,0.0186248,98767.0,98744.0,0.05087856]
[1763061320930,0.01862723,98766.0,98740.0,0.0004]
[1763061321130,0.00046425,98767.0,98741.0,0.04341874]
[1763061321251,0.1141378,98766.0,98740.0,0.0004]
[1763061321453,0.0186278,98765.0,98740.0,0.0004]
[1763061321895,0.09551,98764.0,98740.0,0.0004]
[1763061322098,0.09816915,98757.0,98740.0,0.07714837]
[1763061322297,0.01864314,98756.0,98741.0,0.00771484]
[1763061322503,0.01864314,98756.0,98740.0,0.0004]
[1763061322504,0.01864314,98755.0,98740.0,0.0004]
[1763061323122,0.01864314,98754.0,98740.0,0.03051]
[1763061323344,0.001,98765.0,98741.0,0.09718]
[1763061323547,0.01867017,98764.0,98741.0,0.09718]
[1763061323895,0.01867017,98763.0,98742.0,0.04341874]
[1763061324100,0.00046425,98767.0,98740.0,0.91003244]
[1763061324101,0.01867017,98762.0,98744.0,0.04341874]
[1763061324243,0.01867017,98761.0,98744.0,0.04341874]
[1763061324425,0.01867017,98760.0,98741.0,0.04341874]
[1763061324629,0.01867017,98759.0,98741.0,0.04341874]
[1763061324882,0.01867017,98758.0,98741.0,0.04341874]
[1763061325070,0.01867017,98757.0,98741.0,0.04341874]
[1763061325387,0.01867017,98756.0,98741.0,0.04341874]
[1763061325593,0.01867017,98755.0,98741.0,0.04341874]
[1763061325808,0.01867017,98754.0,98741.0,0.04341874]
[1763061326012,0.01867017,98753.0,98743.0,0.04341874]
[1763061326191,0.01867017,98752.0,98740.0,0.03051]
[1763061326389,0.09551,98766.0,98740.0,0.0004]
[1763061326592,0.01873623,98765.0,98750.0,0.87952244]
[1763061326797,0.01873623,98764.0,98754.0,0.04341874]
[1763061326995,0.01873623,98763.0,98748.0,0.04341874]
[1763061327194,0.01873623,98762.0,98748.0,0.04341874]
[1763061327396,0.01873623,98761.0,98742.0,0.04341874]
[1763061327626,0.01873623,98760.0,98750.0,0.00023434]
[1763061327798,0.01873623,98759.0,98750.0,0.00023434]
[1763061328002,0.01873623,98758.0,98750.0,0.00023434]
[1763061328215,0.09816915,98756.0,98750.0,0.00023434]
[1763061328542,0.00532023,98755.0,98750.0,0.00023434]
[1763061328746,0.00046425,98767.0,98750.0,0.00023434]
[1763061328978,0.09551,98766.0,98750.0,0.00023434]
[1763061329169,0.09816915,98756.0,98750.0,0.00023434]
[1763061329598,0.0635,98751.0,98750.0,0.00023434]
[1763061330029,0.06667177,98751.0,98750.0,0.00023434]
[1763061331608,0.06867177,98751.0,98750.0,0.00023434]
[1763061332012,0.002,98751.0,98750.0,0.00023434]
[1763061332438,0.09816915,98756.0,98750.0,0.00023434]
[1763061332614,0.001,98751.0,98750.0,0.00023434]
[1763061332824,0.002,98751.0,98750.0,0.00023434]
[1763061333022,0.001,98751.0,98750.0,0.00023434]
[1763061333982,0.04674,98752.0,98750.0,0.00023434]
[1763061334133,0.001,98751.0,98750.0,0.00023434]
[1763061334530,0.04674,98752.0,98750.0,0.00023434]
[1763061334742,0.09816915,98751.0,98721.0,0.04341874]
[1763061334943,0.09816915,98751.0,98720.0,0.41681]
[1763061334944,0.00317152,98750.0,98720.0,0.41681]
[1763061335168,0.00317152,98749.0,98712.0,0.09381]
[1763061335504,0.00317152,98748.0,98710.0,0.0004]
[1763061335810,0.97849244,98750.0,98710.0,0.0004]
[1763061335811,0.00317152,98747.0,98710.0,0.0004]
[1763061336026,0.00317152,98746.0,98714.0,0.1225744]
[1763061336187,0.00317152,98745.0,98714.0,0.1225744]
[1763061336389,0.00317152,98744.0,98714.0,0.1225744]
[1763061336604,0.09897,98748.0,98714.0,0.04791]
[1763061336605,0.00317152,98743.0,98714.0,0.04791]
[1763061336777,0.09816915,98736.0,98710.0,0.0004]
[1763061336981,0.04674,98720.0,98710.0,0.0004]
[1763061337284,0.04674,98720.0,98719.0,0.4675]
[1763061337500,0.04674,98728.0,98719.0,0.4675]
[1763061337765,0.04674,98734.0,98719.0,0.4675]
[1763061337939,0.04674,98734.0,98719.0,0.46763948]
[1763061338150,0.04674,98734.0,98720.0,0.01182384]
[1763061340176,0.19713915,98733.0,98720.0,0.01182384]
[1763061340633,0.06663,98721.0,98719.0,0.42513948]
[1763061340773,0.01876597,98720.0,98719.0,0.42513948]
[1763061340979,0.08539597,98720.0,98719.0,0.42513948]
[1763061341404,0.08539597,98720.0,98719.0,0.42594693]
[1763061342033,0.08539597,98720.0,98719.0,0.37794693]
[1763061342439,0.08539597,98720.0,98719.0,0.41574162]
[1763061342714,0.08539597,98720.0,98719.0,0.37794693]
[1763061342932,0.08856863,98720.0,98719.0,0.37794693]
[1763061344078,0.08956863,98720.0,98719.0,0.37794693]
[1763061344909,0.08956863,98720.0,98719.0,0.37799693]
[1763061345280,0.323,98719.0,98710.0,0.0004]
[1763061345494,0.48779915,98711.0,98710.0,0.0005395]
[1763061345697,0.50973778,98711.0,98710.0,0.0005395]
[1763061346294,0.50973778,98711.0,98700.0,0.0004]
[1763061346295,0.79641873,98710.0,98700.0,0.0004]
[1763061346645,0.79641873,98710.0,98700.0,0.00053964]
[1763061346646,0.04341874,98708.0,98700.0,0.00053964]
[1763061346850,0.06663,98701.0,98700.0,0.00053964]
[1763061347027,0.08856863,98701.0,98700.0,0.00053964]
[1763061347814,0.08856863,98701.0,98700.0,0.00058964]
[1763061348287,0.09056863,98701.0,98700.0,0.00063964]
[1763061348504,0.08856863,98701.0,98700.0,0.00063964]
[1763061348725,0.42116915,98709.0,98700.0,0.00063964]
[1763061348726,0.03308,98702.0,98700.0,0.00068964]
[1763061349819,0.002,98701.0,98700.0,0.00068964]
[1763061350046,0.03308,98702.0,98700.0,0.00068964]
[1763061350258,0.03508,98702.0,98700.0,0.00068964]
[1763061350499,0.03708,98702.0,98700.0,0.00068964]
[1763061350720,0.03308,98702.0,98700.0,0.00068964]
[1763061351159,0.004,98701.0,98700.0,0.00068964]
[1763061351406,0.002,98701.0,98700.0,0.00068964]
[1763061351631,0.03508,98702.0,98700.0,0.0011847]
[1763061351863,0.03508,98702.0,98700.0,0.00068964]
[1763061352164,0.03708,98702.0,98700.0,0.00068964]
[1763061352820,0.03508,98702.0,98700.0,0.00068964]
[1763061353308,0.002,98701.0,98700.0,0.00068964]
[1763061353534,0.0495,98701.0,98700.0,0.00068964]
[1763061354178,0.0495,98701.0,98700.0,0.0001]
[1763061354430,0.0495,98701.0,98665.0,0.323]
[1763061354431,0.0505,98701.0,98665.0,0.323]
[1763061354648,0.09816915,98688.0,98665.0,0.32313959]
[1763061354870,0.09816915,98688.0,98671.0,0.20269184]
[1763061355090,0.09816915,98688.0,98666.0,0.09381]
[1763061355571,0.09816915,98688.0,98665.0,0.32313959]
[1763061356011,0.0495,98692.0,98665.0,0.32313959]
[1763061356012,0.0495,98692.0,98671.0,0.20269282]
[1763061356228,0.09816915,98691.0,98666.0,0.09381]
[1763061356674,0.001,98701.0,98690.0,0.04673]
[1763061356889,0.001,98701.0,98690.0,0.11336]
[1763061357106,0.000531,98692.0,98675.0,0.09381]
[1763061357324,0.000531,98692.0,98683.0,0.04673]
[1763061357548,0.03308,98702.0,98683.0,0.04673]
[1763061357772,0.001,98701.0,98684.0,0.41681]
[1763061358011,0.001,98701.0,98691.0,0.00026061]
[1763061358260,0.002,98701.0,98685.0,0.09381]
[1763061358473,0.002,98701.0,98692.0,0.00023454]
[1763061358908,0.001,98701.0,98692.0,0.00023454]
[1763061359368,0.03308,98707.0,98692.0,0.00023454]
[1763061359634,0.03308,98707.0,98693.0,0.04055569]
[1763061360038,0.03308,98707.0,98688.0,0.09381]
[1763061360340,0.00049,98689.0,98684.0,0.001]
[1763061360554,0.0495,98706.0,98684.0,0.001]
[1763061360759,0.01869771,98705.0,98684.0,0.09315]
[1763061360962,0.01869771,98704.0,98684.0,0.09215]
[1763061361132,0.01869771,98703.0,98684.0,0.09215]
[1763061361357,0.01869771,98702.0,98688.0,0.20265764]
[1763061361587,0.01869771,98701.0,98684.0,0.09215]
[1763061361792,0.01869771,98700.0,98683.0,0.00023458]
[1763061362114,0.01869771,98699.0,98684.0,0.03232346]
[1763061362324,0.01869771,98699.0,98683.0,0.00023458]
[1763061362325,0.06653,98684.0,98683.0,0.00023458]
[1763061362669,0.08524042,98684.0,98683.0,0.00023458]
[1763061363681,0.0130008,98684.0,98683.0,0.00123458]
[1763061364052,0.0801608,98684.0,98683.0,0.00123458]
[1763061364255,0.0795108,98684.0,98683.0,0.00023458]
[1763061365062,0.0140008,98684.0,98683.0,0.00023458]
[1763061365265,0.0795108,98684.0,98683.0,0.00023458]
[1763061366104,0.06651,98684.0,98683.0,0.00023458]
[1763061369078,0.06651,98684.0,98656.0,0.323]
[1763061369300,0.01638,98683.0,98656.0,0.323]
[1763061369746,0.01638,98683.0,98651.0,0.323]
[1763061369944,0.01638,98683.0,98674.0,0.00023461]
[1763061370277,0.06347,98675.0,98674.0,0.00023461]
[1763061370496,0.11510421,98675.0,98674.0,0.00023461]
[1763061370931,0.11193,98675.0,98674.0,0.00023461]
[1763061371132,0.11510423,98675.0,98674.0,0.00023461]
[1763061372135,0.11610423,98675.0,98674.0,0.00023461]
[1763061372697,0.11710423,98675.0,98674.0,0.00023461]
[1763061372900,2.51436595,98675.0,98674.0,4.61e-06]
[1763061373104,0.2,98660.0,98640.0,0.0004]
[1763061373350,0.09879,98641.0,98640.0,0.0004]
[1763061373740,0.10196514,98641.0,98640.0,0.0004]
[1763061374164,0.10196534,98641.0,98640.0,0.0004]
[1763061374405,0.10196534,98641.0,98640.0,0.00045]
[1763061374839,0.10196534,98641.0,98640.0,0.0005]
[1763061375215,0.09879,98641.0,98640.0,0.00055]
[1763061375449,0.09979,98641.0,98640.0,0.00055]
[1763061375663,0.10296529,98641.0,98640.0,0.0006]
[1763061375872,0.11854093,98641.0,98640.0,0.0006]
[1763061376093,0.11854093,98641.0,98621.0,0.01415]
[1763061376297,0.01875093,98640.0,98623.0,0.323]
[1763061376497,0.01875093,98639.0,98623.0,0.323]
[1763061376630,0.01875093,98638.0,98623.0,0.323]
[1763061376841,0.002,98641.0,98628.0,0.20278162]
[1763061376842,0.01875093,98637.0,98628.0,0.20278162]
[1763061377026,0.01875093,98636.0,98624.0,0.0964]
[1763061377229,0.01875093,98635.0,98632.0,0.323]
[1763061377475,0.5,98650.0,98641.0,0.04964]
[1763061377692,0.01874363,98649.0,98641.0,0.04964]
[1763061377827,0.01874363,98648.0,98641.0,0.04764]
[1763061378030,0.01874379,98647.0,98641.0,0.04764]
[1763061378252,0.01874379,98646.0,98636.0,0.04965]
[1763061378453,0.50013907,98650.0,98637.0,0.02173559]
[1763061378454,0.01874379,98645.0,98637.0,0.02173559]
[1763061378734,0.07788,98649.0,98620.0,0.0004]
[1763061378735,0.01874379,98644.0,98620.0,0.0004]
[1763061378968,0.11691294,98643.0,98620.0,0.0004]
[1763061379165,0.01874379,98642.0,98620.0,0.0004]
[1763061379366,0.01874379,98641.0,98620.0,0.0004]
[1763061379578,0.01874379,98640.0,98620.0,0.0004]
[1763061379784,0.01874379,98639.0,98620.0,0.0004]
[1763061379987,0.01874379,98638.0,98620.0,0.0004]
[1763061380303,0.01874379,98637.0,98620.0,0.0004]
[1763061380507,0.01874379,98636.0,98620.0,0.0004]
[1763061380711,0.01874379,98635.0,98620.0,0.0004]
[1763061380959,0.01874379,98634.0,98620.0,0.00045]
[1763061381157,0.01874379,98633.0,98621.0,0.001]
[1763061381308,0.09816915,98643.0,98621.0,0.001]
[1763061381309,0.01874379,98632.0,98621.0,0.001]
[1763061381668,0.01874379,98631.0,98620.0,0.00055]
[1763061381879,0.01874379,98630.0,98620.0,0.00155]
[1763061382107,0.00078,98621.0,98620.0,0.0016]
[1763061382364,0.01952379,98621.0,98620.0,0.00065]
[1763061383151,0.01952379,98621.0,98620.0,0.0007]
[1763061383299,0.01952379,98621.0,98613.0,0.000775]
[1763061383512,0.00077,98614.0,98613.0,0.000775]
[1763061383713,0.01951379,98614.0,98613.0,0.000775]
[1763061384753,0.01874379,98614.0,98613.0,0.00124074]
[1763061385112,0.01874379,98614.0,98613.0,0.00272715]
[1763061385314,0.09816915,98618.0,98613.0,0.00272715]
[1763061385514,0.09816915,98618.0,98613.0,0.00124074]
[1763061385946,0.09816915,98618.0,98613.0,0.00224074]
[1763061386345,0.323,98617.0,98613.0,0.00224074]
[1763061386556,0.00317655,98616.0,98613.0,0.00224074]
[1763061386821,0.00317655,98615.0,98613.0,0.00224074]
[1763061387020,0.09816915,98618.0,98613.0,0.00224074]
[1763061387021,0.00317655,98614.0,98613.0,0.00124074]
[1763061387141,0.09816915,98618.0,98613.0,0.00124074]
[1763061387747,0.323,98617.0,98613.0,0.00124074]
[1763061387947,0.00517651,98616.0,98613.0,0.00124074]
[1763061388146,0.001,98614.0,98613.0,0.00124074]
[1763061388787,0.09916915,98618.0,98613.0,0.00124074]
[1763061388991,0.324,98617.0,98613.0,0.00124074]
[1763061389193,0.001,98617.0,98613.0,0.00124074]
[1763061389762,0.001,98617.0,98614.0,0.00512907]
[1763061389983,0.001,98617.0,98613.0,0.00124074]
[1763061390198,0.002,98614.0,98613.0,0.00124074]
[1763061390393,0.002,98614.0,98592.0,0.04225074]
[1763061390639,0.001,98614.0,98592.0,0.04239052]
[1763061390847,0.001,98614.0,98592.0,0.00013978]
[1763061391040,0.03479,98593.0,98592.0,0.00013978]
[1763061391560,0.03479,98606.0,98593.0,0.04902]
[1763061391702,0.03479,98606.0,98592.0,0.00013978]
[1763061391911,0.03479,98606.0,98605.0,0.00148654]
[1763061392700,0.03479,98606.0,98592.0,0.00013978]
[1763061392888,0.09816915,98593.0,98592.0,0.00013978]
[1763061393094,0.42434633,98593.0,98592.0,0.00013978]
[1763061393293,0.42434647,98593.0,98592.0,0.00013978]
[1763061394168,0.80210182,98580.0,98570.0,0.0004]
[1763061394376,0.18330915,98571.0,98570.0,0.0004]
[1763061394998,0.14601915,98571.0,98570.0,0.0004]
[1763061397407,0.16469145,98571.0,98570.0,0.0004]
[1763061397615,0.16469145,98571.0,98541.0,0.01082]
[1763061397814,0.0186723,98570.0,98541.0,0.01095888]
[1763061398013,0.0186723,98570.0,98555.0,0.20293094]
[1763061398244,0.0186723,98569.0,98550.0,0.60210182]
[1763061398448,0.09816915,98576.0,98551.0,0.20293855]
[1763061398604,0.01867443,98575.0,98560.0,0.60210182]
[1763061398830,0.01867443,98574.0,98560.0,0.60210182]
[1763061399033,0.01867443,98573.0,98561.0,0.04902]
[1763061399239,0.04785,98583.0,98563.0,0.60210182]
[1763061399578,0.01868061,98582.0,98572.0,0.0624]
[1763061399830,0.53479,98629.0,98582.0,0.11142]
[1763061400021,0.53479,98629.0,98605.0,0.11142]
[1763061400022,0.03479,98629.0,98605.0,0.11142]
[1763061400178,0.01869882,98617.0,98608.0,0.60210182]
[1763061400342,0.01869882,98616.0,98607.0,0.60210182]
[1763061400551,0.01869882,98615.0,98607.0,0.60210182]
[1763061400798,0.01869882,98614.0,98607.0,0.60210182]
[1763061401002,0.00046382,98615.0,98607.0,0.60210182]
[1763061401236,0.01869247,98614.0,98607.0,0.60210182]
[1763061401421,0.01869247,98614.0,98593.0,0.323]
[1763061401422,0.03479,98608.0,98596.0,0.04902]
[1763061401802,0.01870154,98607.0,98596.0,0.04902]
[1763061401975,0.03479,98608.0,98598.0,0.60210182]
[1763061402191,0.09816915,98678.0,98620.0,0.01013993]
[1763061402393,0.01872128,98660.0,98651.0,0.60210182]
[1763061402702,0.00013912,98661.0,98640.0,0.62855182]
[1763061402703,0.01872128,98659.0,98640.0,0.62855182]
[1763061402903,0.00013912,98661.0,98630.0,0.01770646]
[1763061402904,0.04785,98641.0,98630.0,0.60210182]
[1763061403102,0.0187259,98640.0,98629.0,0.04902]
[1763061403329,0.00013912,98661.0,98629.0,0.04902]
[1763061403330,0.09816915,98659.0,98640.0,0.0624]
[1763061403505,0.09816915,98659.0,98640.0,0.66450182]
[1763061403725,0.01590674,98656.0,98640.0,0.66450182]
[1763061404128,0.5,98650.0,98640.0,0.66450182]
[1763061404422,0.5,98650.0,98641.0,0.41795]
[1763061404598,0.5,98650.0,98649.0,0.04783]
[1763061404800,0.5,98650.0,98649.0,0.04902]
[1763061405481,0.5,98650.0,98640.0,0.69705182]
[1763061405930,0.5,98650.0,98640.0,0.60210182]
[1763061406587,0.00013912,98661.0,98640.0,0.60210182]
[1763061406844,0.09816915,98657.0,98649.0,0.001]
[1763061407078,0.00013912,98661.0,98650.0,0.60210182]
[1763061407304,0.09816915,98656.0,98613.0,0.09495]
[1763061407538,0.09816915,98656.0,98600.0,0.02570933]
[1763061407539,0.09816915,98639.0,98620.0,0.60210182]
[1763061407754,0.09816915,98639.0,98630.0,0.60210182]
[1763061408643,0.09816915,98639.0,98620.0,0.60215182]
[1763061409298,0.09816915,98639.0,98620.0,0.60220182]
[1763061409748,0.09816915,98639.0,98629.0,0.60210182]
[1763061409959,0.09816915,98639.0,98630.0,0.001]
[1763061410422,0.06018,98631.0,98620.0,0.60225182]
[1763061410638,0.09677,98638.0,98620.0,0.60225182]
[1763061410639,0.09677,98638.0,98620.0,0.00115]
[1763061410975,0.09816915,98623.0,98620.0,0.00115]
[1763061411175,0.09816915,98623.0,98620.0,0.00015]
[1763061411394,0.10816,98621.0,98620.0,0.00015]
[1763061411596,0.10829902,98621.0,98620.0,0.00015]
[1763061411828,0.04811902,98621.0,98600.0,0.88391811]
[1763061412034,0.00013902,98621.0,98620.0,0.04902]
[1763061412239,0.01999998,98620.0,98600.0,0.88391811]
[1763061412603,0.00999999,98610.0,98600.0,0.88391811]
[1763061412849,0.01999998,98610.0,98600.0,0.88391811]
[1763061413056,0.00999999,98610.0,98600.0,0.88396811]
[1763061413437,0.09816915,98619.0,98605.0,0.20282806]
[1763061413610,0.09816915,98619.0,98600.0,0.88396811]
[1763061413611,0.01999998,98620.0,98600.0,0.88501811]
[1763061413810,0.00999999,98610.0,98600.0,0.88506811]
[1763061414017,0.00013902,98621.0,98601.0,0.42116915]
[1763061414018,0.00999999,98620.0,98601.0,0.42116915]
[1763061414220,0.00999999,98620.0,98611.0,0.88391811]
[1763061415036,0.00999999,98620.0,98600.0,0.0012]
[1763061415037,0.01999998,98610.0,98601.0,0.323]
[1763061415707,0.00999999,98610.0,98601.0,0.323]
[1763061415915,0.01999998,98610.0,98601.0,0.324]
[1763061416124,0.01999998,98610.0,98601.0,0.001]
[1763061416361,0.01999998,98610.0,98600.0,0.88411811]
[1763061416569,0.01999998,98610.0,98600.0,0.0002]
[1763061416773,0.01999998,98610.0,98601.0,0.001]
[1763061416983,0.09816915,98609.0,98601.0,0.00105]
[1763061417194,0.06018,98602.0,98601.0,0.0001]
[1763061417635,0.19493915,98609.0,98601.0,0.0001]
[1763061417845,0.19493915,98609.0,98601.0,0.00015]
[1763061418272,0.09816915,98609.0,98601.0,0.00015]
[1763061418926,0.09816915,98609.0,98601.0,0.001]